Cogmind - Beta 15 @@@ ROGUE MODE // 2025.07.13 @ 22:01:19 Player: korgoth Result: Destroyed by S-27 Virus with Autogun Performance ------------- Evolutions (1) 500 Regions Visited (6) 1200 Robots Destroyed (19) 95 Value Destroyed (426) 426 Prototype IDs (3) 60 Alien Tech Used (0) 0 Bonus (761) 761 TOTAL SCORE: 3042 Bonus ------- Follower Combat Kills 161 Met Imprinter 300 Was Imprinted 300 Cogmind --------- Core Integrity 0/400 Matter 278/300 Energy 97/100 System Corruption 0% Temperature Cool (0) Movement Core (50) Location -6/Proximity Caves Parts ------- > --- POWER (1) -------- (None) > --- PROPULSION (3) --- (None) > --- UTILITY (3) ------ Advanced Signal Interpreter Experimental Terrain Scan Processor > --- WEAPON (2) ------- (None) > --- INVENTORY (5) ---- Reaction Control System Hardened Light Armor Plating Layered Light Armor Plating Peak State ------------ > --- POWER ------------ Light Deuterium Engine > --- PROPULSION ------- Flight Unit Flight Unit Flight Unit > --- UTILITY ---------- Small Storage Unit Improved Terrain Scanner Experimental Terrain Scan Processor > --- WEAPON ----------- Barrage Gun > --- INVENTORY -------- Light Deuterium Engine Advanced Signal Interpreter Reaction Control System Reaction Control System Hardened Light Armor Plating Layered Light Armor Plating Advanced System Shield [Rating: 23] Favorites ----------- Power Light Deuterium Engine Engine Light Deuterium Engine Propulsion Flight Unit Leg Carbon-fiber Leg Wheel Wheel Flight Unit Flight Unit Utility Improved Terrain Scanner Device Improved Terrain Scanner Storage Small Storage Unit Processor Experimental Terrain Scan Processor Weapon Light Assault Rifle Energy Gun Medium Laser Ballistic Gun Light Assault Rifle Build | -11 -10 -10 -9 -9 -7 -6 ------- Run | Yrd Mat Min Mat Min Zio Pro Slots Evolved 2 | . . . 2 . . . Power . | . . . . . . . Propulsion 1 | . . . 1 . . . Utility 1 | . . . 1 . . . Weapon . | . . . . . . . Parts Attached 35 | 7 . 4 10 . 7 7 Power 4 | 1 . . 2 . . 1 Engine 4 | 1 . . 2 . . 1 Core . | . . . . . . . Reactor . | . . . . . . . Propulsion 13 | 2 . 1 4 . 3 3 Treads . | . . . . . . . Leg 3 | . . . 3 . . . Wheel 4 | 2 . 1 1 . . . Hover . | . . . . . . . Flight 6 | . . . . . 3 3 Utility 11 | 2 . 2 1 . 4 2 Device 2 | 1 . . . . . 1 Storage 3 | 1 . 2 . . . . Processor 6 | . . . 1 . 4 1 Hackware . | . . . . . . . Protection . | . . . . . . . Artifact . | . . . . . . . Weapon 7 | 2 . 1 3 . . 1 Energy Gun 3 | 1 . 1 1 . . . Energy Cannon . | . . . . . . . Ballistic Gun 4 | 1 . . 2 . . 1 Ballistic Cannon . | . . . . . . . Launcher . | . . . . . . . Special Weapon . | . . . . . . . Impact Weapon . | . . . . . . . Slashing Weapon . | . . . . . . . Piercing Weapon . | . . . . . . . Special Melee Weapon . | . . . . . . . Unidentified Prototypes 3 | . . . . . 3 . Parts Lost 14 | . . . 3 . . 11 Power 2 | . . . . . . 2 Propulsion 8 | . . . 2 . . 6 Utility 2 | . . . . . . 2 Weapon 2 | . . . 1 . . 1 Highest Loss Streak 9 | . . . 2 . . 9 To Critical Strikes . | . . . . . . . Average Backups 8 | 3 6 8 9 10 8 7 Power 1 | . 1 . 1 2 1 . Propulsion 3 | 2 3 6 5 4 2 . Utility 3 | . . . 2 4 5 5 Weapon . | . 1 . . . . . Tool/Special . | . . . . . . . Unused Backups 15 | . 3 7 1 . . 4 Power 3 | . . 2 1 . . . Propulsion 6 | . 2 4 . . . . Utility 4 | . . . . . . 4 Weapon 2 | . 1 1 . . . . Tool/Special . | . . . . . . . Average Slot Usage (%) 91 | . 100 94 94 100 91 76 Engine 11 | . 14 14 11 11 11 9 Leg 8 | . . . 19 33 9 . Wheel 8 | . 28 28 12 . . . Flight 14 | . . . . . 23 27 Device 11 | . 14 14 11 11 10 9 Storage 11 | . 14 14 11 11 11 9 Processor 8 | . . . 10 11 11 12 Energy Gun 2 | . 14 8 2 . . . Ballistic Gun 14 | . 14 14 16 22 14 9 Peak Build Rating 23 | 9 10 12 19 19 21 23 Average Rating 16 | 5 9 10 15 19 19 19 On Entrance 12 | . 9 10 9 19 19 21 Naked Turns . | . . . . . . . Heaviest Build 20 | 14 14 20 18 18 18 12 Greatest Support 40 | 26 26 26 40 40 40 12 Greatest Overweight (x) 1 | . . . . . 1 1 Average Overweight (x) . | . . . . . . . Largest Inventory Capacity 25 | 8 8 25 10 10 10 8 Average Capacity 8 | 7 8 9 10 10 8 7 Most Carried 10 | 6 8 10 10 10 10 8 Average Carried 8 | 3 6 9 9 10 8 7 Final Capacity 10 | 8 8 10 10 10 8 5 Final Carried 10 | 5 8 10 10 10 8 3 Class Distribution -------------------- 66% | Scavenger-Mutant 33% | Mutant Dominant Class ---------------- Mutant | -10/Materials Mutant | -10/Mines Scavenger-Mutant | -9/Materials Scavenger-Mutant | -9/Mines Scavenger-Mutant | -7/Zion Scavenger-Mutant | -6/Proximity Caves Resources | -11 -10 -10 -9 -9 -7 -6 ----------- Run | Yrd Mat Min Mat Min Zio Pro Matter Collected 605 | 287 . 65 111 . 48 94 Remotely . | . . . . . . . Salvage Created 597 | 116 . 107 278 . . 96 Parts 31 | 2 . 9 17 . . 3 Haulers Intercepted . | . . . . . . . Recyclers Shooed . | . . . . . . . Parts Field Recycled . | . . . . . . . Retrieved Matter . | . . . . . . . Parts Self-Destructed 2 | . . . . . . 2 Prevented 2 | . . . . . . 2 Kills | -11 -10 -10 -9 -9 -7 -6 ------- Run | Yrd Mat Min Mat Min Zio Pro Combat Hostiles Destroyed 16 | . . 5 9 . . 2 Guns 16 | . . 5 9 . . 2 Classes Destroyed 6 | 2 . 2 1 . . 1 Tunneler 1 | 1 . . . . . . Recycler 1 | 1 . . . . . . Watcher 1 | . . . 1 . . . Swarmer 9 | . . 4 4 . . 1 Grunt 6 | . . 1 5 . . . Duelist 1 | . . . . . . 1 Best Kill Streak 8 | 1 . 2 8 . . 1 Combat Bots Only 8 | . . 2 8 . . 1 Max Kills in Single Turn 1 | 1 . 1 1 . . 1 Gunslinging . | . . . . . . . Exploded . | . . . . . . . Melee . | . . . . . . . Uniques/NPCs Destroyed . | . . . . . . . Combat | -11 -10 -10 -9 -9 -7 -6 -------- Run | Yrd Mat Min Mat Min Zio Pro Hostile Shots Fired 201 | . . 38 57 . . 106 Missed 79 | . . 10 20 . . 49 Hits 122 | . . 28 37 . . 57 Projectile 122 | . . 28 37 . . 57 Damage Taken 1301 | . . 248 352 . . 701 Core 512 | . . 103 71 . . 338 Absorbed by Shields . | . . . . . . . Core Remaining (%) 79 | 100 . 58 . . . . Volleys Fired 86 | 17 . 15 35 . . 19 Largest 2 | 2 . 2 2 . . 1 Hottest 85 | 70 . 85 60 . . 20 Shots Fired 134 | 34 . 30 51 . . 19 Gun 134 | 34 . 30 51 . . 19 Cannon . | . . . . . . . Launcher . | . . . . . . . Special . | . . . . . . . Kinetic 87 | 17 . 15 36 . . 19 Thermal 47 | 17 . 15 15 . . . Explosive . | . . . . . . . Electromagnetic . | . . . . . . . Robot Hit Streak 9 | 6 . 6 9 . . 3 Robot Miss Streak 7 | 7 . 4 4 . . 2 Penetration Max . | . . . . . . . Secondary Targets 4 | . . 2 2 . . . Max Gunslinging Chain 1 | . . 1 1 . . . Shots Hit Robots 79 | 18 . 17 33 . . 11 Core Hits 40 | 4 . 7 21 . . 8 Critical Kills . | . . . . . . . Critical Parts Destroyed 1 | . . 1 . . . . Critical Strikes 3 | 1 . 2 . . . . Burn 2 | 1 . 1 . . . . Destroy 1 | . . 1 . . . . Melee Attacks . | . . . . . . . Impact . | . . . . . . . Slashing . | . . . . . . . Piercing . | . . . . . . . Sneak Attacks . | . . . . . . . Combat Hostiles . | . . . . . . . Follow-up Attacks . | . . . . . . . Damage Inflicted 783 | 176 . 199 316 . . 92 Guns 783 | 176 . 199 316 . . 92 Cannons . | . . . . . . . Explosions . | . . . . . . . Melee . | . . . . . . . Ramming . | . . . . . . . Kinetic 450 | 77 . 65 216 . . 92 Thermal 333 | 99 . 134 100 . . . Explosive . | . . . . . . . Electromagnetic . | . . . . . . . Impact . | . . . . . . . Slashing . | . . . . . . . Piercing . | . . . . . . . Highest Corruption . | . . . . . . . Average Corruption . | . . . . . . . Corruption Purged . | . . . . . . . Corruption Blocked . | . . . . . . . Overload Shots . | . . . . . . . Overflow Damage . | . . . . . . . Projectiles . | . . . . . . . Explosions . | . . . . . . . Melee . | . . . . . . . Knockbacks . | . . . . . . . Impact . | . . . . . . . Kinetic . | . . . . . . . Secondary . | . . . . . . . Self-Inflicted Damage . | . . . . . . . Shots . | . . . . . . . Rammed . | . . . . . . . Targets Rammed . | . . . . . . . Kicked . | . . . . . . . Crushed . | . . . . . . . Highest Temperature 260 | 120 . 260 63 . . 16 Average Temperature 52 | 41 . 101 24 . . 3 Received Heat Transfer 312 | . . 27 123 . . 162 Siege Activations . | . . . . . . . Martial Activations . | . . . . . . . Shielding Activations . | . . . . . . . Robots Disrupted . | . . . . . . . Combat Hostiles . | . . . . . . . Robots Corrupted . | . . . . . . . Combat Hostiles . | . . . . . . . Parts Fried . | . . . . . . . Impact Corruptions . | . . . . . . . Robots Melted . | . . . . . . . Combat Hostiles . | . . . . . . . Parts Melted 1 | 1 . . . . . . Heat Transferred 1002 | 370 . 407 225 . . . Parts Sabotaged . | . . . . . . . Parts Stolen . | . . . . . . . Parts Stripped . | . . . . . . . Power Chain Reactions . | . . . . . . . Alert | -11 -10 -10 -9 -9 -7 -6 ------- Run | Yrd Mat Min Mat Min Zio Pro Maximum Alert Level . | . . . . . . . Low Security (%) 100 | 100 100 100 100 100 . . Level 1 . | . . . . . . . Level 2 . | . . . . . . . Level 3 . | . . . . . . . Level 4 . | . . . . . . . Level 5 . | . . . . . . . High Security . | . . . . . . . Max Security . | . . . . . . . Peak Influence 145 | 5 3 95 145 37 . . Initial 37 | . 3 . 17 37 . . Average 44 | 1 . 40 79 31 . . Influence Increases 797 | 10 . 155 267 . . 365 Destroy 0b10 Robot/C 400 | . . 100 180 . . 120 Destroy 0b10 Robot/NC 15 | 10 . . 5 . . . Destroy Leader 52 | . . 10 22 . . 20 Allied During Kill 45 | . . . . . . 45 Disable Machine 15 | . . 15 . . . . Lose Combat Pursuer 270 | . . 30 60 . . 180 Influence Decreases 732 | 5 5 110 215 80 17 300 Entered New Map 107 | . 2 . 28 60 17 . Time Decay 408 | 5 3 110 160 20 . 110 Lost Part 137 | . . . 27 . . 110 Lost Ally 80 | . . . . . . 80 Squads Dispatched 1 | . . . 1 . . . Investigation . | . . . . . . . Extermination . | . . . . . . . Reinforcement . | . . . . . . . Assault 1 | . . . 1 . . . Garrison . | . . . . . . . Intercept . | . . . . . . . Searches Triggered . | . . . . . . . Construction Impeded . | . . . . . . . Haulers Reinforced . | . . . . . . . Active Scanning Responses . | . . . . . . . Cargo Convoy Interrupts . | . . . . . . . Stealth | -11 -10 -10 -9 -9 -7 -6 --------- Run | Yrd Mat Min Mat Min Zio Pro Distress Signals 2 | . 1 . 1 . . . Communications Jammed . | . . . . . . . Distress Signals . | . . . . . . . Times Spotted 44 | . . 8 16 . . 20 Peak Tracking Total 8 | . . 4 7 . . 8 Tactical Retreats 9 | . . 2 2 . . 5 Traps | -11 -10 -10 -9 -9 -7 -6 ------- Run | Yrd Mat Min Mat Min Zio Pro Traps Triggered . | . . . . . . . Indirectly . | . . . . . . . Trap Hack Attempts . | . . . . . . . Triggered . | . . . . . . . Disarmed . | . . . . . . . Reprogrammed . | . . . . . . . Reused . | . . . . . . . Traps Extracted . | . . . . . . . Installed . | . . . . . . . Triggered . | . . . . . . . Machines | -11 -10 -10 -9 -9 -7 -6 ---------- Run | Yrd Mat Min Mat Min Zio Pro Machines Disabled 1 | . . 1 . . . . Max in Single Turn 1 | . . 1 . . . . Machines Repaired . | . . . . . . . Machines Dismantled . | . . . . . . . Machines Sabotaged . | . . . . . . . Overloaded Fab Kills . | . . . . . . . Hacking | -11 -10 -10 -9 -9 -7 -6 --------- Run | Yrd Mat Min Mat Min Zio Pro Machines Accessed 4 | . 3 . 1 . . . Terminals 3 | . 2 . 1 . . . Fabricators . | . . . . . . . Repair Stations . | . . . . . . . Recycling Units 1 | . 1 . . . . . Scanalyzers . | . . . . . . . Garrison Access . | . . . . . . . Total Hacks 4 | . 3 . 1 . . . Successful 1 | . 1 . . . . . Failed 3 | . 2 . 1 . . . Catastrophic 2 | . 1 . 1 . . . Database Lockouts . | . . . . . . . Manual 2 | . 1 . 1 . . . Terminals 3 | . 2 . 1 . . . Fabricators . | . . . . . . . Repair Stations . | . . . . . . . Recycling Units 1 | . 1 . . . . . Scanalyzers . | . . . . . . . Garrison Access . | . . . . . . . Terminal Hacks . | . . . . . . . Fabricator Hacks . | . . . . . . . Repair Station Hacks . | . . . . . . . Recycling Unit Hacks 1 | . 1 . . . . . Report Inventory 1 | . 1 . . . . . Scanalyzer . | . . . . . . . Garrison Access Hacks . | . . . . . . . Unauthorized Hacks . | . . . . . . . Terminals . | . . . . . . . Fabricators . | . . . . . . . Repair Stations . | . . . . . . . Recycling Units . | . . . . . . . Scanalyzers . | . . . . . . . Garrison Access . | . . . . . . . Data Cores Recovered . | . . . . . . . Used . | . . . . . . . Hacking Detections 2 | . 1 . 1 . . . Full Trace Events . | . . . . . . . Feedback Events . | . . . . . . . Feedback Blocked . | . . . . . . . Robot Schematics Acquired 2 | . . . . . 2 . Robots Built . | . . . . . . . Authchips . | . . . . . . . Time . | . . . . . . . Total Robot Build Rating . | . . . . . . . Part Schematics Acquired 14 | . . . . . 14 . Parts Built . | . . . . . . . Authchips . | . . . . . . . Time . | . . . . . . . Total Part Build Rating . | . . . . . . . Parts Repaired . | . . . . . . . Time . | . . . . . . . Parts Recycled . | . . . . . . . Recycled Matter . | . . . . . . . Retrieved Matter . | . . . . . . . Retrieved Components . | . . . . . . . Parts Scanalyzed . | . . . . . . . Part Schematics Acquired . | . . . . . . . Parts Damaged . | . . . . . . . Bothacking | -11 -10 -10 -9 -9 -7 -6 ------------ Run | Yrd Mat Min Mat Min Zio Pro Used RIF Installer . | . . . . . . . Robots Hacked . | . . . . . . . Non-combat . | . . . . . . . Combat . | . . . . . . . Robot Hacks Applied . | . . . . . . . Relay Couplers Released . | . . . . . . . Fabnet Peak Effective % . | . . . . . . . Robots Rewired . | . . . . . . . Allies Hacked . | . . . . . . . Hacks Repelled . | . . . . . . . Allies | -11 -10 -10 -9 -9 -7 -6 -------- Run | Yrd Mat Min Mat Min Zio Pro Total Allies 4 | . . . . . 4 . Largest Group 4 | . . . . . 4 4 Highest-Rated Group 153 | . . . . . 153 153 Highest-Rated Ally 39 | . . . . . 39 39 Total Orders . | . . . . . . . Ally Attacks 46 | . . . . . . 46 Total Damage 1223 | . . . . . . 1223 Kills 4 | . . . . . . 4 Allies Corrupted . | . . . . . . . Allies Melted . | . . . . . . . Intel | -11 -10 -10 -9 -9 -7 -6 ------- Run | Yrd Mat Min Mat Min Zio Pro Active Infowar (turns) 1906 | 8 119 291 334 40 923 191 Optics 709 | . . . 314 40 355 . Terrain 1896 | 8 119 291 334 40 913 191 Robot Analysis Total . | . . . . . . . Derelict Logs Recovered 2 | . . . . . 2 . Drone Launches . | . . . . . . . Drone Recoveries . | . . . . . . . Exploration | -11 -10 -10 -9 -9 -7 -6 ------------- Run | Yrd Mat Min Mat Min Zio Pro Turns Passed 2049 | 119 119 291 334 40 923 223 Spaces Moved 2277 | 64 114 214 206 34 1265 380 Core 66 | 11 . . . . . 55 Treads . | . . . . . . . Legs 384 | . . . 149 34 201 . Wheels 438 | 53 114 214 57 . . . Hover . | . . . . . . . Flight 1389 | . . . . . 1064 325 Fastest Speed 32 | 50 90 90 86 120 34 32 Average Speed 60 | 83 90 90 110 120 48 37 Slowest Speed 120 | 90 90 90 120 120 120 117 Overloaded Moves . | . . . . . . . Propulsion Burnouts . | . . . . . . . Robots Hopped . | . . . . . . . Potential Cave-ins . | . . . . . . . Cave-ins Triggered . | . . . . . . . Exploration Rate (%) 34 | 4 25 49 28 15 90 32 Regions Visited 6 Branch Regions 4 Pre-discovered Areas 1 | . . . . . 1 . Known Exits Taken . | . . . . . . . Unknown Exits Taken 6 | 1 1 1 1 1 1 . Scrap Searched 3 | . . 2 . . 1 . Spaces Dug . | . . . . . . . Terrain Destroyed . | . . . . . . . Melee . | . . . . . . . Projectile . | . . . . . . . AOE . | . . . . . . . Terrain Rammed . | . . . . . . . Walls Destroyed . | . . . . . . . Machines Disabled . | . . . . . . . Actions | -11 -10 -10 -9 -9 -7 -6 --------- Run | Yrd Mat Min Mat Min Zio Pro Total 2847 | 99 131 288 269 33 1580 447 Wait 362 | . 9 32 . . 290 31 Move 2271 | 63 113 213 205 33 1264 380 Hop . | . . . . . . . Pick Up 56 | 12 6 12 12 . 9 5 Fast Attach . | . . . . . . . Attach 24 | 7 . 1 6 . 2 8 Detach . | . . . . . . . Swap 16 | . . 4 5 . 7 . Drop 32 | . 3 11 6 . 8 4 Fire 86 | 17 . 15 35 . . 19 Melee . | . . . . . . . Ram . | . . . . . . . Kick . | . . . . . . . Crush . | . . . . . . . Escape Stasis . | . . . . . . . Rewire . | . . . . . . . Trap . | . . . . . . . Miscellaneous . | . . . . . . . Route ------- -11/Scrapyard -10/Materials -10/Mines -9/Materials -9/Mines -7/Zion -6/Proximity Caves (discovered 1 exit: Fac) History --------- Turn | Location | Event 2 | -11/Scrapyard | Met Revision 17 4 | -11/Scrapyard | Discovered new exit (range 15) 120 | -11/Scrapyard | Entered Materials 215 | -10/Materials | Discovered new exit (range 14) 239 | -10/Materials | Entered Mines 240 | -10/Mines | Met a Derelict testing a Signal Generator 245 | -10/Mines | Found Signal Generator 312 | -10/Mines | Build established: Mutant 463 | -10/Mines | Assembled infested the area 468 | -10/Mines | Assisted by a Guerilla fighting off Assembled 518 | -10/Mines | Discovered new exit (range 6) 530 | -10/Mines | Entered Materials 530 | -9/Materials | Evolved 2 slots: Propulsion x1, Utility x1 676 | -9/Materials | Destroyed 8 combat bots 845 | -9/Materials | Discovered new exit (range 14) 864 | -9/Materials | Entered Mines 888 | -9/Mines | A Derelict revealed a hidden shortcut to a safe place 904 | -9/Mines | Entered Zion 961 | -7/Zion | Build established: Scavenger-Mutant 1158 | -7/Zion | Received a visual enhancement algorithm 1223 | -7/Zion | Learned 8 Factory zone layouts 1227 | -7/Zion | Learned location of 1 exit from Factory 1245 | -7/Zion | Learned location of Quarantine (-2) 1248 | -7/Zion | Found Prototype Processor 1249 | -7/Zion | Identified Exp. Terrain Scan Processor 1253 | -7/Zion | Found Prototype Processor 1254 | -7/Zion | Identified Exp. Melee Analysis Suite 1257 | -7/Zion | Found Prototype Processor 1258 | -7/Zion | Identified Spectral Analyzer 1261 | -7/Zion | Found Exp. Terrain Scan Processor 1491 | -7/Zion | Met Imprinter 1497 | -7/Zion | Imprinted 1499 | -7/Zion | Declared Zion's savior 1740 | -7/Zion | Discovered new exit (range 14) 1827 | -7/Zion | Entered Proximity Caves 1827 | -6/Proximity Caves | Accompanied by 4 allies 1828 | -6/Proximity Caves | Identified exit to Factory 1968 | -6/Proximity Caves | Lost 4 allies 1969 | -6/Proximity Caves | Attracted the attention of an 0b10 checkpoint 2011 | -6/Proximity Caves | Core integrity fell below 50% 2041 | -6/Proximity Caves | Core integrity fell below 20% 2050 | -6/Proximity Caves | Destroyed by S-27 Virus with Autogun Last Messages --------------- 8G-9VI(M) destroyed. Acquired Flight Unit. Acquired 31 matter. Flight Unit destroyed. Y-54 Guardian: "INTERCEPTING UNREGISTERED DERELICT." Lgt. Deuterium Engine destroyed. Flight Unit destroyed. G-50 Soldier suffers critical hit (Burn). S-27 Virus destroyed. Acquired VTOL Module. Lgt. Deuterium Engine destroyed. Lgt. Assault Rifle destroyed. Acquired VTOL Module. Flight Unit destroyed. VTOL Module destroyed. Imp. Terrain Scanner destroyed. Dropped Sml. Storage Unit. VTOL Module destroyed. Reaction Control System destroyed. Map ----- +----------------------------------------------------+ | ?????????????????????????????????????????????????? | | ?????????????????????????????????????????????????? | | ?????????????????????????????????????????????????? | | ?????????????????????????????????????????????????? | | ?????????????????????????????????????????????????? | | ?????????????????????????????????????????????????? | | ?????????????????????????????????????????????????? | | ?????????????????????????????????????????????????? | | ?????????????????????????????????????????????????? | | ?????????????????????????????????????????????????? | | ?????????????????????????????????????????????????? | | ?????????????????????????????????????????????????? | | ?????????????????????????????????????????????????? | | ?????????????????????????????????????????????????? | | ?????????????????????????????????????????????????? | | ?????????????????????????????????????????????????? | | ???##????????????????????????????????????????????? | | ?????????????????????????????????????????????????? | | ??##?????????????????????????????????????????????? | | ??# ?????????????????????????????????????????????? | | #???????????????????????????##???????????????????? | | ###???#????????????????????# ##??????????????????? | | #?#?#?????????????#####?# #??????????????????? | | ###?#?????????????# ## ## ### ????????? | | ##???????????????## ????????? | | #?? ? ?????????### @ ????????? | | ####?? ???????### ????????? | | ???##?# ? ?????# ss ????????? | | ##?###? ? ?????# ## ?????????? | | ######? ????## ### ?????????? | | ##### ?? #???## ## ## ??????????? | | #####?? ????# s ####?? ??????????? | | #### ?#??## s ##??????? ??????????? | | # ?? #????### ### ##????????? ???????????? | | # #??????## ### ##?????????????????????? | | #??????# #?????????????????????? | | #####??#??## #?????????????????????? | | ### #########????## ## #?????????????????????? | | ### ###########???###### #?????????????????????? | | ### ######?### #?????????????????????? | | ### #?# #?????????????????????? | | ##########?## ### ##?????????????????????? | | ############ ##??????????????????????? | | ########### ## #???????????????????????? | | ######## ## #??????????????????????? | | ###### ### #?????????????????????? | | ###### ### ##?????????????????????? | | # ####### #?## #??????????????????????? | | ## ###### ##### #??????????????????????? | | ######## ###?### #??????????????????????? | +----------------------------------------------------+ Best States ------------- Heat Dissipation 28 Energy Generation 14 Energy Capacity 250 Matter Stores 300 Matter Capacity 300 Sight Range 18 Terrain Scan Range 16 Terrain Scan Density 1010 Evasion (%) 63 Item Schematics ----------------- System Restoration Module | -7/Zion | Archive Hvy. Flak Cannon | -7/Zion | Archive Imp. Core Shielding | -7/Zion | Archive Adv. Terrain Scan Processor | -7/Zion | Archive Adv. Signal Interpreter | -7/Zion | Archive Flak Gun | -7/Zion | Archive Mni. Drone Bay | -7/Zion | Archive IFF Parser | -7/Zion | Archive Greatsword | -7/Zion | Archive Adv. Assault Cannon | -7/Zion | Archive Drone Bay | -7/Zion | Archive Imp. Titanium Leg | -7/Zion | Archive Energy Filter | -7/Zion | Archive Imp. Plasma Cutter | -7/Zion | Archive Robot Schematics ------------------ S-27 Virus | -7/Zion | Archive K-01 Serf | -7/Zion | Archive Fabricated ------------ Nothing Repaired ---------- Nothing Alien Tech Used ----------------- None Achievements -------------- None Challenges ------------ None Game ------ Seed NeutrinoRiotBotcube Manual? 0 Play Time 00:36:49 Cumulative 62.3 hours Start 2025.07.11 @ 17:15:34 End 2025.07.13 @ 22:01:19 Sessions 4 Manual Loads 0 Difficulty Rogue Special Mode None Game No. 62 Rogue 52 Adventurer 10 Explorer 0 Win Type - Total 1 Types 1/0/0/0/0/0/0/0/0/0 Lore% 27 Gallery% 37 Achievement% 31 Wizard Run 0 Options --------- Layout 1 ASCII 0 Keyboard 0 Movement Numpad Keybinds 0 Fullscreen 1 Font 24/Smallcaps Map View 50x35 Zoom Use 0% Tactical HUD 0 Map Filters NONE Filters NONE Steam 1 RUN: 13b9b566-3daf-4687-8861-b1c43db27f8d